[Event "2nd Gujarat Open 2019"]
[Site "Ahmedabad, Gujarat"]
[Date "2019.09.24"]
[Round "4.31"]
[White "Vijay, Anand M."]
[Black "Anustoop Biswas"]
[Result "1/2-1/2"]
[ECO "C10"]
[WhiteElo "1806"]
[BlackElo "2154"]
[Annotator "RC"]
[PlyCount "120"]
[EventDate "2019.09.22"]
[EventCountry "IND"]
[SourceTitle "playchess.com"]
[Source "ChessBase"]
[SourceQuality "1"]
[TimeControl "5400+30"]

1. e4 {[%emt 0:01:51]} e6 {[%emt 0:01:42]} 2. d4 {[%emt 0:00:11]} d5 {[%emt 0:00:19]} 3. Nc3 {[%emt 0:00:06]} Be7 {[%emt 0:01:41]} 4. Bd3 {[%emt 0:01:58]} Nc6 {[%emt 0:05:19]} 5. Nf3 {[%emt 0:02:58]} Nb4 {[%emt 0:01:02]} 6. O-O {[%emt 0:03:44]} Nxd3 {[%emt 0:01:22]} 7. Qxd3 {[%emt 0:00:07]} Nf6 {[%emt 0:05:41]} 8. Re1 {[%emt 0:03:01]} a6 {[%emt 0:05:31]} 9. Bf4 {[%emt 0:13:03]} h6 {[%emt 0:16:24]} 10. Be5 {[%emt 0:03:38]} O-O {[%emt 0:03:22]} 11. Rad1 {[%emt 0:02:55]} b6 {[%emt 0:02:31]} 12. exd5 {[%emt 0:07:23]} exd5 {[%emt 0:00:22]} 13. h3 {[%emt 0:00:10]} Be6 {[%emt 0:03:43]} 14. Bxf6 {[%emt 0:07:03]} Bxf6 {[%emt 0:00:18]} 15. Ne5 {[%emt 0:00:13]} Qd6 {[%emt 0:00:12]} 16. f4 {[%emt 0:01:26]} Rfe8 {[%emt 0:00:55]} 17. Qf3 {[%emt 0:00:57]} Rad8 {[%emt 0:01:31]} 18. Ne2 {[%emt 0:09:05]} Bf5 {[%emt 0:05:06]} 19. c3 {[%emt 0:02:03]} Be4 {[%emt 0:02:23]} 20. Qh5 {[%emt 0:01:12]} Bxe5 {[%emt 0:25:56]} 21. fxe5 {[%emt 0:01:05]} Qd7 {[%emt 0:00:01]} 22. Ng3 {[%emt 0:00:56]} Bg6 {[%emt 0:00:02]} 23. Qg4 {[%emt 0:03:04]} Qxg4 {[%emt 0:00:38]} 24. hxg4 {[%emt 0:00:18]} Re6 {[%emt 0:00:13]} 25. Ne2 {[%emt 0:05:02]} Be4 {[%emt 0:00:10]} 26. Nf4 {[%emt 0:00:05]} Rc6 {[%emt 0:00:50]} 27. Kf2 {[%emt 0:00:24]} b5 {[%emt 0:00:12]} 28. Rc1 {[%emt 0:00:54]} f6 {[%emt 0:02:16]} 29. exf6 {[%emt 0:09:21]} Rxf6 {[%emt 0:00:38]} 30. Kg3 {[%emt 0:00:04]} Rdf8 {[%emt 0:00:19]} 31. Nh3 {[%emt 0:00:07]} h5 {[%emt 0:09:02]} 32. g5 {[%emt 0:09:05]} Rf5 {[%emt 0:00:22]} 33. Re2 {[%emt 0:00:14]} Kh7 {[%emt 0:00:28]} 34. Rce1 {[%emt 0:03:28]} Kg6 {[%emt 0:00:39]} 35. Kh4 {[%emt 0:00:25]} c6 {[%emt 0:04:22]} 36. g3 {[%emt 0:01:33]} Rf1 {[%emt 0:01:17]} 37. Rxf1 {[%emt 0:00:35]} Rxf1 {[%emt 0:00:02]} 38. Rh2 {[%emt 0:02:04]} Ra1 {[%emt 0:01:29]} 39. a3 {[%emt 0:00:11]} Bf3 {[%emt 0:00:07]} 40. Nf4+ {[%emt 0:00:08]} Kh7 {[%emt 0:01:00]} 41. Nxh5 {[%emt 0:00:09]} g6 {[%emt 0:00:21]} 42. Nf6+ {[%emt 0:00:47]} Kg7 {[%emt 0:00:06]} 43. g4 {[%emt 0:00:49]} Rg1 {[%emt 0:01:02]} 44. Rf2 {[%emt 0:00:51]} Bd1 {[%emt 0:00:02]} 45. Kh3 {[%emt 0:00:35]} Re1 {[%emt 0:00:05]} 46. Kg3 {[%emt 0:00:28]} a5 {[%emt 0:00:26]} 47. Rd2 {[%emt 0:01:28]} Ba4 {[%emt 0:00:39]} 48. Kf2 {[%emt 0:00:38]} Re7 {[%emt 0:01:03]} 49. Re2 {[%emt 0:00:16]} Kf7 {[%emt 0:00:40]} 50. Rxe7+ {[%emt 0:03:16]} Kxe7 {[%emt 0:00:01]} 51. Ke3 {[%emt 0:00:14]} Bd1 {[%emt 0:00:24]} 52. b4 {[%emt 0:00:12]} a4 {[%emt 0:00:35]} 53. Kf4 {[%emt 0:00:05]} Be2 {[%emt 0:00:38]} 54. Ke5 {[%emt 0:00:33]} Bc4 {[%emt 0:00:08]} 55. Ng8+ {[%emt 0:00:20]} Kf7 {[%emt 0:00:03]} 56. Nh6+ {[%emt 0:01:08]} Ke7 {[%emt 0:00:06]} 57. Nf5+ {[%emt 0:01:29]} Kf7 {[%emt 0:00:42]} 58. Nd6+ {[%emt 0:00:51]} Ke7 {[%emt 0:00:01]} 59. Nb7 {[%emt 0:01:18]} Bd3 {[%emt 0:00:27]} 60. Na5 {[%emt 0:00:10]} Kd7 {[%emt 0:00:03]} 1/2-1/2

[Event "2nd Gujarat Open 2019"]
[Site "Ahmedabad, Gujarat"]
[Date "2019.09.24"]
[Round "4.34"]
[White "Nanal Arnav"]
[Black "Thanki, Hemal Karsanji"]
[Result "0-1"]
[ECO "A40"]
[WhiteElo "1587"]
[BlackElo "2098"]
[Annotator "NA RC"]
[PlyCount "78"]
[EventDate "2019.09.22"]
[EventCountry "IND"]
[SourceTitle "playchess.com"]
[Source "ChessBase"]
[SourceQuality "1"]
[TimeControl "5400+30"]

1. d4 {[%emt 0:00:00]} g6 {[%emt 0:00:00]} 2. Nf3 {[%emt 0:01:06]} Bg7 {[%emt 0:00:00]} 3. Bf4 {[%emt 0:01:17]} d6 {[%emt 0:00:00]} 4. e3 {[%emt 0:00:38]} Nd7 {[%emt 0:00:00]} 5. h3 {[%emt 0:01:01]} e5 {[%emt 0:00:55]} 6. Bh2 {[%emt 0:01:07]} Nh6 {[%emt 0:01:21]} 7. Be2 {[%emt 0:02:33]} O-O {[%emt 0:00:13]} 8. O-O {[%emt 0:01:00]} Kh8 {[%emt 0:02:56]} 9. Nbd2 {[%emt 0:04:15]} Qe7 {[%emt 0:00:56]} 10. c3 {[%emt 0:02:35]} e4 {[%emt 0:03:00]} 11. Ne1 {[%emt 0:00:12]} f5 {[%emt 0:00:13]} 12. Nc2 {[%emt 0:25:24]} Nf6 {[%emt 0:04:07]} 13. Kh1 {[%emt 0:10:30]} g5 {[%emt 0:06:00]} 14. Rg1 {[%emt 0:07:28]} f4 {[%emt 0:06:03]} 15. Qe1 {[%emt 0:15:03]} f3 {[%emt 0:06:48]} 16. Bf1 {[%emt 0:07:36]} g4 {[%emt 0:02:09]} 17. Bf4 {[%emt 0:08:38]} fxg2+ {[%emt 0:07:33]} 18. Rxg2 {[%emt 0:00:54]} gxh3 {[%emt 0:00:23]} 19. Rh2 {[%emt 0:00:35]} Qf7 {[%emt 0:25:48]} 20. Bxh3 {[%emt 0:01:49]} Nhg4 {[%emt 0:00:26]} 21. Rg2 {[%emt 0:05:39]} Qh5 {[%emt 0:01:51]} 22. Rg3 {[%emt 0:00:02]} Nd5 {[%emt 0:05:21]} 23. Kg2 {[%emt 0:01:29]} Rxf4 {[%emt 0:01:22]} 24. exf4 {[%emt 0:00:34]} Nxf4+ {[%emt 0:00:02]} 25. Kf1 {[%emt 0:00:22]} Nxh3 {[%emt 0:03:01]} 26. Qe2 {[%emt 0:00:36]} d5 {[%emt 0:03:11]} 27. Ne3 {[%emt 0:00:30]} Nf4 {[%emt 0:00:49]} 28. Qb5 {[%emt 0:00:32]} c6 {[%emt 0:01:01]} 29. Qa5 {[%emt 0:00:22]} Qh1+ {[%emt 0:01:50]} 30. Rg1 {[%emt 0:00:01]} Nh2+ {[%emt 0:00:01]} 31. Ke1 {[%emt 0:00:01]} Qxg1+ {[%emt 0:00:02]} 32. Ndf1 {[%emt 0:00:23]} Nd3+ {[%emt 0:00:54]} 33. Kd1 {[%emt 0:00:13]} Bg4+ {[%emt 0:00:32]} 34. Kc2 {[%emt 0:00:17]} Qxf2+ {[%emt 0:00:12]} 35. Kb3 {[%emt 0:00:03]} Qxb2+ {[%emt 0:00:22]} 36. Ka4 {[%emt 0:00:07]} b5+ {[%emt 0:00:21]} 37. Qxb5 {[%emt 0:00:05]} cxb5+ {[%emt 0:01:15]} 38. Ka5 {[%emt 0:00:06]} Qa3+ {[%emt 0:00:58]} 39. Kxb5 {[%emt 0:00:05]} Bd7# {[%emt 0:00:02]} 0-1

[Event "2nd Gujarat Open 2019"]
[Site "Ahmedabad, Gujarat"]
[Date "2019.09.24"]
[Round "4.35"]
[White "Shirodkar Aayush"]
[Black "Kumar, Gaurav"]
[Result "1/2-1/2"]
[ECO "B20"]
[WhiteElo "1456"]
[BlackElo "2096"]
[Annotator "NA RC"]
[PlyCount "122"]
[EventDate "2019.09.22"]
[EventCountry "IND"]
[SourceTitle "playchess.com"]
[Source "ChessBase"]
[SourceQuality "1"]
[TimeControl "5400+30"]

1. e4 {[%emt 0:00:00]} c5 {[%emt 0:00:00]} 2. d3 {[%emt 0:00:00]} Nc6 {[%emt 0:00:00]} 3. Nf3 {[%emt 0:00:00]} g6 {[%emt 0:00:39]} 4. g3 {[%emt 0:00:00]} Bg7 {[%emt 0:00:01]} 5. Bg2 {[%emt 0:00:00]} e6 {[%emt 0:00:01]} 6. O-O {[%emt 0:00:18]} Nge7 {[%emt 0:00:03]} 7. c3 {[%emt 0:00:38]} O-O {[%emt 0:01:28]} 8. Nbd2 {[%emt 0:00:30]} Rb8 {[%emt 0:00:10]} 9. a4 {[%emt 0:01:44]} a6 {[%emt 0:00:17]} 10. Nb3 {[%emt 0:01:57]} d6 {[%emt 0:00:52]} 11. a5 {[%emt 0:02:43]} b6 {[%emt 0:00:58]} 12. axb6 {[%emt 0:00:30]} Qxb6 {[%emt 0:00:02]} 13. Ra3 {[%emt 0:03:26]} a5 {[%emt 0:01:38]} 14. Bf4 {[%emt 0:03:38]} e5 {[%emt 0:00:35]} 15. Be3 {[%emt 0:01:02]} Be6 {[%emt 0:01:37]} 16. c4 {[%emt 0:03:39]} a4 {[%emt 0:01:47]} 17. Na1 {[%emt 0:02:40]} Qxb2 {[%emt 0:00:13]} 18. Rxa4 {[%emt 0:00:32]} Ra8 {[%emt 0:04:55]} 19. Rxa8 {[%emt 0:03:19]} Rxa8 {[%emt 0:00:25]} 20. Qb1 {[%emt 0:03:58]} Ra2 {[%emt 0:04:42]} 21. Bd2 {[%emt 0:05:26]} Nb4 {[%emt 0:00:32]} 22. Qxb2 Rxb2 23. Bc3 {[%emt 0:06:06]} Ra2 {[%emt 0:00:39]} 24. Bxb4 {[%emt 0:00:24]} cxb4 {[%emt 0:00:03]} 25. Rb1 {[%emt 0:00:08]} Bh6 {[%emt 0:18:21]} 26. Nb3 {[%emt 0:01:45]} Nc8 {[%emt 0:00:07]} 27. Bf1 {[%emt 0:12:58]} Nb6 {[%emt 0:04:51]} 28. c5 {[%emt 0:00:35]} Na4 {[%emt 0:00:52]} 29. cxd6 {[%emt 0:03:32]} Nc3 {[%emt 0:00:25]} 30. Ra1 {[%emt 0:02:52]} Rxa1 {[%emt 0:05:29]} 31. Nxa1 {[%emt 0:00:07]} Kf8 {[%emt 0:00:04]} 32. Nxe5 {[%emt 0:00:54]} b3 {[%emt 0:00:48]} 33. Nxb3 {[%emt 0:02:36]} Bxb3 {[%emt 0:00:10]} 34. Bh3 {[%emt 0:02:18]} Be6 {[%emt 0:00:39]} 35. Bxe6 {[%emt 0:00:38]} fxe6 {[%emt 0:00:04]} 36. d7 {[%emt 0:00:37]} Ke7 {[%emt 0:08:03]} 37. d8=Q+ Kxd8 {[%emt 0:00:02]} 38. Nf7+ {[%emt 0:01:35]} Ke7 {[%emt 0:00:01]} 39. Nxh6 {[%emt 0:00:01]} Ne2+ {[%emt 0:00:01]} 40. Kg2 {[%emt 0:00:42]} Nc1 {[%emt 0:00:02]} 41. d4 {[%emt 0:01:20]} Ne2 {[%emt 0:00:01]} 42. d5 {[%emt 0:00:21]} exd5 {[%emt 0:00:02]} 43. exd5 {[%emt 0:00:01]} Nc3 {[%emt 0:00:02]} 44. Ng8+ {[%emt 0:00:30]} Kd6 {[%emt 0:01:54]} 45. Nf6 {[%emt 0:00:07]} h5 {[%emt 0:00:12]} 46. f3 {[%emt 0:04:12]} Ke7 {[%emt 0:01:15]} 47. Ne4 {[%emt 0:00:19]} Nxd5 {[%emt 0:00:03]} 48. g4 {[%emt 0:00:17]} hxg4 {[%emt 0:06:02]} 49. fxg4 {[%emt 0:00:02]} Kf7 {[%emt 0:00:02]} 50. h4 {[%emt 0:00:14]} Kf8 {[%emt 0:00:14]} 51. Kg3 {[%emt 0:00:08]} Kg7 {[%emt 0:00:02]} 52. g5 {[%emt 0:00:26]} Ne3 {[%emt 0:00:36]} 53. Nf6 {[%emt 0:01:23]} Nf5+ {[%emt 0:00:14]} 54. Kg4 {[%emt 0:00:02]} Ne3+ {[%emt 0:00:21]} 55. Kh3 {[%emt 0:00:08]} Nf5 {[%emt 0:00:13]} 56. Ne4 {[%emt 0:00:44]} Kf7 {[%emt 0:00:17]} 57. Nc5 {[%emt 0:00:06]} Ne3 {[%emt 0:00:28]} 58. Nd3 {[%emt 0:00:10]} Ke6 {[%emt 0:00:15]} 59. Nf4+ {[%emt 0:00:28]} Kf5 {[%emt 0:00:21]} 60. h5 {[%emt 0:00:32]} Kxg5 {[%emt 0:01:38]} 61. hxg6 {[%emt 0:00:21]} Nf5 1/2-1/2

[Event "2nd Gujarat Open 2019"]
[Site "Ahmedabad, Gujarat"]
[Date "2019.09.24"]
[Round "4.36"]
[White "Barath Kalyan M"]
[Black "Shah, Vishwa"]
[Result "1-0"]
[ECO "A00"]
[WhiteElo "2092"]
[BlackElo "1760"]
[Annotator "NA RC"]
[PlyCount "59"]
[EventDate "2019.09.22"]
[EventCountry "IND"]
[SourceTitle "playchess.com"]
[Source "ChessBase"]
[SourceQuality "1"]
[TimeControl "5400+30"]

1. a3 {[%emt 0:01:04]} Nf6 {[%emt 0:00:00]} 2. Nf3 {[%emt 0:00:16]} g6 {[%emt 0:00:18]} 3. b4 {[%emt 0:00:56]} Bg7 {[%emt 0:00:27]} 4. Bb2 {[%emt 0:00:06]} d6 {[%emt 0:05:57]} 5. c4 {[%emt 0:00:44]} c5 {[%emt 0:02:28]} 6. g3 {[%emt 0:03:33]} b6 {[%emt 0:00:48]} 7. Bg2 {[%emt 0:00:07]} Bb7 {[%emt 0:00:04]} 8. O-O {[%emt 0:00:18]} O-O {[%emt 0:00:06]} 9. Qb3 {[%emt 0:06:09]} Qc7 {[%emt 0:03:28]} 10. Nc3 {[%emt 0:01:01]} a6 {[%emt 0:00:59]} 11. Rac1 {[%emt 0:02:31]} Nbd7 {[%emt 0:00:31]} 12. Nd5 {[%emt 0:03:35]} Nxd5 {[%emt 0:02:33]} 13. Bxg7 {[%emt 0:00:13]} Kxg7 {[%emt 0:00:13]} 14. cxd5 {[%emt 0:00:06]} Rac8 {[%emt 0:05:30]} 15. d3 {[%emt 0:03:41]} Qb8 {[%emt 0:03:18]} 16. Nd2 {[%emt 0:09:14]} Qa8 {[%emt 0:06:25]} 17. e4 {[%emt 0:02:37]} b5 {[%emt 0:02:16]} 18. Qb2+ {[%emt 0:09:44]} Kg8 {[%emt 0:00:16]} 19. Nb3 {[%emt 0:06:29]} Ne5 {[%emt 0:08:22]} 20. Nxc5 {[%emt 0:02:11]} dxc5 {[%emt 0:15:26]} 21. Qxe5 {[%emt 0:00:09]} cxb4 {[%emt 0:00:03]} 22. axb4 {[%emt 0:00:20]} Rfe8 {[%emt 0:00:12]} 23. h4 {[%emt 0:00:52]} a5 {[%emt 0:04:43]} 24. h5 {[%emt 0:02:42]} axb4 {[%emt 0:07:16]} 25. h6 {[%emt 0:00:59]} f6 {[%emt 0:00:05]} 26. Qe6+ {[%emt 0:00:05]} Kf8 {[%emt 0:00:14]} 27. d6 {[%emt 0:01:39]} Qa6 {[%emt 0:01:02]} 28. e5 {[%emt 0:01:43]} Rc3 {[%emt 0:01:51]} 29. exf6 {[%emt 0:02:03]} exd6 {[%emt 0:02:22]} 30. Qd7 {[%emt 0:00:09]} 1-0

[Event "2nd Gujarat Open 2019"]
[Site "Ahmedabad, Gujarat"]
[Date "2019.09.25"]
[Round "5.1"]
[White "Das, Sayantan"]
[Black "Rozum, Ivan"]
[Result "*"]
[ECO "B13"]
[WhiteElo "2434"]
[BlackElo "2596"]
[Annotator "RC"]
[PlyCount "44"]
[EventDate "2019.09.22"]
[EventCountry "IND"]
[SourceTitle "playchess.com"]
[Source "ChessBase"]
[SourceQuality "1"]
[TimeControl "5400+30"]

1. e4 {[%emt 0:03:00]} c6 {[%emt 0:05:20]} 2. d4 {[%emt 0:00:28]} d5 {[%emt 0:00:05]} 3. exd5 {[%emt 0:00:38]} cxd5 {[%emt 0:00:05]} 4. Bd3 {[%emt 0:00:05]} Nc6 {[%emt 0:00:09]} 5. c3 {[%emt 0:00:07]} Nf6 {[%emt 0:02:22]} 6. h3 {[%emt 0:00:16]} g6 {[%emt 0:00:59]} 7. Qc2 {[%emt 0:02:45]} e5 {[%emt 0:06:08]} 8. dxe5 {[%emt 0:01:13]} Nxe5 {[%emt 0:00:02]} 9. Bb5+ {[%emt 0:02:35]} Bd7 {[%emt 0:01:36]} 10. Bxd7+ {[%emt 0:03:33]} Qxd7 {[%emt 0:00:09]} 11. Ne2 {[%emt 0:00:27]} Bg7 {[%emt 0:02:03]} 12. O-O {[%emt 0:00:56]} O-O {[%emt 0:00:04]} 13. Nd2 {[%emt 0:03:29]} Rfe8 {[%emt 0:09:54]} 14. Nb3 {[%emt 0:04:43]} Nc4 {[%emt 0:00:30]} 15. Bf4 {[%emt 0:11:47]} b5 {[%emt 0:07:07]} 16. Rad1 {[%emt 0:06:17]} Qb7 {[%emt 0:03:57]} 17. a3 {[%emt 0:03:44]} Rac8 {[%emt 0:03:14]} 18. Bc1 {[%emt 0:04:32]} Rc7 {[%emt 0:09:51]} 19. Nf4 {[%emt 0:04:20]} Rcc8 {[%emt 0:05:57]} 20. f3 {[%emt 0:08:40]} Ne3 {[%emt 0:03:36]} 21. Bxe3 {[%emt 0:00:26]} Rxe3 {[%emt 0:00:02]} 22. Qf2 {[%emt 0:05:01]} Ree8 {[%emt 0:03:05]} *

[Event "2nd Gujarat Open 2019"]
[Site "Ahmedabad, Gujarat"]
[Date "2019.09.25"]
[Round "5.3"]
[White "Rathnakaran, K.."]
[Black "Saptarshi, Roy"]
[Result "0-1"]
[ECO "C55"]
[WhiteElo "2325"]
[BlackElo "2480"]
[Annotator "ChessBase"]
[PlyCount "78"]
[EventDate "2019.09.22"]
[EventCountry "IND"]
[SourceTitle "playchess.com"]
[Source "ChessBase"]
[SourceQuality "1"]
[TimeControl "5400+30"]

1. e4 {[%emt 0:02:40]} e5 {[%emt 0:00:00]} 2. Nf3 {[%emt 0:00:04]} Nc6 {[%emt 0:00:00]} 3. Bc4 {[%emt 0:00:04]} Nf6 {[%emt 0:00:05]} 4. d3 {[%emt 0:00:04]} Be7 {[%emt 0:00:06]} 5. Nc3 {[%emt 0:00:11]} d6 {[%emt 0:00:14]} 6. a3 {[%emt 0:00:10]} O-O {[%emt 0:00:07]} 7. Ba2 {[%emt 0:00:22]} Be6 {[%emt 0:02:19]} 8. Nd5 {[%emt 0:00:05]} Bxd5 {[%emt 0:01:36]} 9. exd5 {[%emt 0:00:05]} Nd4 {[%emt 0:00:39]} 10. c3 {[%emt 0:00:08]} Nxf3+ {[%emt 0:00:06]} 11. Qxf3 {[%emt 0:00:08]} Qd7 {[%emt 0:01:17]} 12. h3 {[%emt 0:00:06]} Rae8 {[%emt 0:01:08]} 13. Be3 {[%emt 0:02:16]} Qa4 {[%emt 0:00:48]} 14. Qd1 {[%emt 0:07:41]} Qxd1+ {[%emt 0:00:22]} 15. Kxd1 {[%emt 0:00:08]} Nd7 {[%emt 0:01:38]} 16. Kc2 {[%emt 0:00:05]} f5 {[%emt 0:00:15]} 17. g4 {[%emt 0:00:12]} Bh4 {[%emt 0:02:12]} 18. Rh2 {[%emt 0:00:44]} f4 {[%emt 0:02:49]} 19. Bd2 {[%emt 0:00:16]} e4 {[%emt 0:01:43]} 20. dxe4 {[%emt 0:03:31]} Ne5 {[%emt 0:01:59]} 21. Rg2 {[%emt 0:08:34]} Nf3 {[%emt 0:00:59]} 22. Bc4 {[%emt 0:00:09]} Rxe4 {[%emt 0:04:10]} 23. Bd3 {[%emt 0:00:09]} Re5 {[%emt 0:06:05]} 24. c4 {[%emt 0:01:30]} Nxd2 {[%emt 0:07:07]} 25. Kxd2 {[%emt 0:00:07]} f3 {[%emt 0:00:04]} 26. Rh2 {[%emt 0:00:16]} Rfe8 {[%emt 0:00:05]} 27. Rf1 {[%emt 0:00:48]} g6 {[%emt 0:01:24]} 28. Kc2 {[%emt 0:01:07]} Kg7 {[%emt 0:00:39]} 29. Rhh1 {[%emt 0:00:24]} Kf6 {[%emt 0:00:09]} 30. a4 {[%emt 0:02:19]} Kg5 {[%emt 0:02:00]} 31. a5 {[%emt 0:01:16]} Kf4 {[%emt 0:00:13]} 32. a6 {[%emt 0:00:05]} b6 {[%emt 0:00:20]} 33. Kc3 {[%emt 0:00:40]} Re2 {[%emt 0:00:47]} 34. b3 {[%emt 0:08:27]} Rxf2 {[%emt 0:02:57]} 35. Rxf2 {[%emt 0:00:26]} Bxf2 {[%emt 0:00:02]} 36. Kb4 {[%emt 0:00:39]} Bc5+ {[%emt 0:01:49]} 37. Kb5 {[%emt 0:00:05]} Re3 {[%emt 0:00:04]} 38. Bf1 {[%emt 0:03:28]} Rxb3+ {[%emt 0:01:14]} 39. Kc6 {[%emt 0:00:03]} b5 {[%emt 0:01:10]} 0-1

[Event "2nd Gujarat Open 2019"]
[Site "Ahmedabad, Gujarat"]
[Date "2019.09.25"]
[Round "5.5"]
[White "Bharat Kumar Reddy Poluri"]
[Black "Nguyen, Van Huy"]
[Result "1/2-1/2"]
[ECO "B12"]
[WhiteElo "2304"]
[BlackElo "2454"]
[Annotator "ChessBase"]
[PlyCount "55"]
[EventDate "2019.09.22"]
[EventCountry "IND"]
[SourceTitle "playchess.com"]
[Source "ChessBase"]
[SourceQuality "1"]
[TimeControl "5400+30"]

1. e4 {[%emt 0:02:16]} c6 {[%emt 0:00:13]} 2. d4 {[%emt 0:00:36]} d5 {[%emt 0:00:14]} 3. e5 {[%emt 0:00:05]} Bf5 {[%emt 0:00:22]} 4. Nf3 {[%emt 0:00:04]} e6 {[%emt 0:00:09]} 5. Be2 {[%emt 0:00:11]} Bb4+ {[%emt 0:00:50]} 6. Bd2 {[%emt 0:02:41]} Bxd2+ {[%emt 0:02:34]} 7. Nbxd2 {[%emt 0:00:15]} h6 {[%emt 0:03:28]} 8. O-O {[%emt 0:00:23]} Ne7 {[%emt 0:00:10]} 9. a4 {[%emt 0:01:00]} a5 {[%emt 0:03:38]} 10. Nb3 {[%emt 0:02:23]} O-O {[%emt 0:02:13]} 11. Re1 {[%emt 0:00:47]} Nd7 {[%emt 0:02:23]} 12. Qd2 {[%emt 0:07:25]} Qb6 {[%emt 0:04:31]} 13. h3 {[%emt 0:00:09]} Qb4 {[%emt 0:04:54]} 14. Qc1 {[%emt 0:03:32]} Rfc8 {[%emt 0:08:14]} 15. Ra3 {[%emt 0:03:47]} Qb6 {[%emt 0:02:08]} 16. Qd2 {[%emt 0:00:38]} Qc7 {[%emt 0:07:08]} 17. Rc1 {[%emt 0:01:59]} b6 {[%emt 0:08:46]} 18. Qe1 {[%emt 0:08:42]} Qd8 {[%emt 0:02:42]} 19. Raa1 {[%emt 0:03:38]} Be4 {[%emt 0:03:39]} 20. Nfd2 {[%emt 0:02:07]} Bg6 {[%emt 0:01:39]} 21. c4 {[%emt 0:01:36]} Nb8 {[%emt 0:04:57]} 22. Nf1 {[%emt 0:08:21]} Na6 {[%emt 0:01:24]} 23. Ne3 {[%emt 0:04:14]} Nb4 {[%emt 0:00:48]} 24. c5 {[%emt 0:02:16]} Nf5 {[%emt 0:01:40]} 25. Nxf5 {[%emt 0:00:40]} Bxf5 {[%emt 0:00:05]} 26. Qd2 {[%emt 0:00:07]} Rcb8 {[%emt 0:01:26]} 27. cxb6 {[%emt 0:06:43]} Rxb6 {[%emt 0:00:48]} 28. Nc5 {[%emt 0:00:19]} 1/2-1/2

[Event "2nd Gujarat Open 2019"]
[Site "Ahmedabad, Gujarat"]
[Date "2019.09.25"]
[Round "5.8"]
[White "Deepan Chakkravarthy J."]
[Black "Abu Sufian, Shakil"]
[Result "1-0"]
[ECO "D19"]
[WhiteElo "2539"]
[BlackElo "2255"]
[Annotator "ChessBase"]
[PlyCount "51"]
[EventDate "2019.09.22"]
[EventCountry "IND"]
[SourceTitle "playchess.com"]
[Source "ChessBase"]
[SourceQuality "1"]
[TimeControl "5400+30"]

1. d4 {[%emt 0:10:30]} d5 {[%emt 0:00:00]} 2. c4 {[%emt 0:00:04]} c6 {[%emt 0:00:00]} 3. Nf3 {[%emt 0:00:04]} Nf6 {[%emt 0:00:00]} 4. Nc3 {[%emt 0:00:16]} dxc4 {[%emt 0:00:00]} 5. a4 {[%emt 0:00:18]} Bf5 {[%emt 0:00:00]} 6. e3 {[%emt 0:00:41]} e6 {[%emt 0:00:17]} 7. Bxc4 {[%emt 0:00:06]} Bb4 {[%emt 0:00:03]} 8. O-O {[%emt 0:00:19]} O-O {[%emt 0:00:06]} 9. Qe2 {[%emt 0:01:41]} Nbd7 {[%emt 0:00:19]} 10. e4 {[%emt 0:00:11]} Bg4 {[%emt 0:00:05]} 11. Rd1 {[%emt 0:00:20]} Qa5 {[%emt 0:00:08]} 12. h3 {[%emt 0:00:22]} Bxf3 {[%emt 0:00:24]} 13. Qxf3 {[%emt 0:01:31]} e5 {[%emt 0:00:07]} 14. d5 {[%emt 0:05:04]} Nb6 {[%emt 0:00:22]} 15. Bb3 {[%emt 0:08:03]} Bxc3 {[%emt 0:00:59]} 16. bxc3 {[%emt 0:03:00]} cxd5 {[%emt 0:00:09]} 17. Ba3 {[%emt 0:00:51]} dxe4 {[%emt 0:21:43]} 18. Qg3 {[%emt 0:04:19]} Rfd8 {[%emt 0:01:30]} 19. Bb4 {[%emt 0:10:31]} Qa6 {[%emt 0:00:57]} 20. Rxd8+ {[%emt 0:10:09]} Rxd8 {[%emt 0:00:03]} 21. Be7 {[%emt 0:01:21]} Rd3 {[%emt 0:03:24]} 22. Qxe5 {[%emt 0:00:06]} Nfd7 {[%emt 0:20:17]} 23. Qxe4 {[%emt 0:16:06]} Rxc3 {[%emt 0:05:19]} 24. Bb4 {[%emt 0:00:41]} Rc8 {[%emt 0:00:21]} 25. Qe7 {[%emt 0:00:06]} Rf8 {[%emt 0:06:06]} 26. Rd1 {[%emt 0:00:13]} 1-0

[Event "2nd Gujarat Open 2019"]
[Site "Ahmedabad, Gujarat"]
[Date "2019.09.25"]
[Round "5.19"]
[White "Pranav Vijay"]
[Black "Satkar, Chirag"]
[Result "1-0"]
[ECO "C84"]
[WhiteElo "2265"]
[BlackElo "2052"]
[Annotator "ChessBase"]
[PlyCount "97"]
[EventDate "2019.09.22"]
[EventCountry "IND"]
[SourceTitle "playchess.com"]
[Source "ChessBase"]
[SourceQuality "1"]
[TimeControl "5400+30"]

1. e4 {[%emt 0:06:23]} e5 {[%emt 0:00:01]} 2. Nf3 {[%emt 0:00:08]} Nc6 {[%emt 0:00:16]} 3. Bb5 {[%emt 0:00:07]} a6 {[%emt 0:00:10]} 4. Ba4 {[%emt 0:00:06]} Nf6 {[%emt 0:00:04]} 5. O-O {[%emt 0:00:09]} Be7 {[%emt 0:00:09]} 6. d3 {[%emt 0:00:37]} b5 {[%emt 0:02:53]} 7. Bb3 {[%emt 0:00:07]} O-O {[%emt 0:00:38]} 8. Nc3 {[%emt 0:00:08]} d6 {[%emt 0:01:17]} 9. a3 {[%emt 0:00:22]} h6 {[%emt 0:07:25]} 10. h3 {[%emt 0:03:37]} Be6 {[%emt 0:05:08]} 11. Nd5 {[%emt 0:03:15]} Qd7 {[%emt 0:13:55]} 12. Re1 {[%emt 0:04:40]} Rfe8 {[%emt 0:06:58]} 13. Bd2 {[%emt 0:02:15]} Nd8 {[%emt 0:03:59]} 14. c4 {[%emt 0:02:13]} Rb8 {[%emt 0:01:08]} 15. Rc1 {[%emt 0:05:53]} c6 {[%emt 0:03:05]} 16. Ne3 {[%emt 0:01:25]} Nb7 {[%emt 0:02:59]} 17. cxb5 {[%emt 0:01:16]} axb5 {[%emt 0:01:01]} 18. Bxe6 {[%emt 0:00:47]} fxe6 {[%emt 0:00:30]} 19. b4 {[%emt 0:00:30]} Ra8 {[%emt 0:00:30]} 20. Qb3 {[%emt 0:00:30]} Bd8 {[%emt 0:00:30]} 21. Rc2 {[%emt 0:00:30]} Bb6 {[%emt 0:00:30]} 22. Rec1 {[%emt 0:00:30]} Nd8 {[%emt 0:00:30]} 23. Ra2 {[%emt 0:00:30]} Nh5 {[%emt 0:00:30]} 24. Nf1 {[%emt 0:00:30]} Ra4 {[%emt 0:00:30]} 25. Be3 {[%emt 0:00:30]} Qa7 {[%emt 0:00:30]} 26. Bxb6 {[%emt 0:00:30]} Qxb6 {[%emt 0:00:30]} 27. Ne3 {[%emt 0:00:30]} Qa7 {[%emt 0:00:30]} 28. d4 {[%emt 0:00:30]} exd4 {[%emt 0:00:30]} 29. Nf5 {[%emt 0:00:30]} Qd7 {[%emt 0:00:30]} 30. N5xd4 {[%emt 0:00:30]} Nf4 {[%emt 0:00:30]} 31. Ne2 {[%emt 0:00:30]} Nxe2+ {[%emt 0:00:30]} 32. Rxe2 {[%emt 0:00:30]} Kh8 {[%emt 0:00:30]} 33. e5 {[%emt 0:00:30]} d5 {[%emt 0:00:30]} 34. Rc3 {[%emt 0:00:30]} Qa7 {[%emt 0:00:30]} 35. Ne1 {[%emt 0:00:30]} Rf8 {[%emt 0:00:30]} 36. Nc2 {[%emt 0:00:30]} Ra6 {[%emt 0:00:30]} 37. Rd2 {[%emt 0:00:30]} Rf4 {[%emt 0:00:30]} 38. Rf3 {[%emt 0:00:30]} Rxf3 {[%emt 0:00:30]} 39. Qxf3 {[%emt 0:00:30]} Kg8 {[%emt 0:35:18]} 40. Qc3 {[%emt 0:42:39]} c5 {[%emt 0:06:24]} 41. bxc5 {[%emt 0:00:55]} Rc6 {[%emt 0:00:03]} 42. Nd4 {[%emt 0:02:56]} Rxc5 {[%emt 0:00:58]} 43. Qe3 {[%emt 0:00:11]} Qc7 {[%emt 0:03:51]} 44. Rb2 {[%emt 0:01:03]} Nf7 {[%emt 0:02:10]} 45. Nxe6 {[%emt 0:03:06]} Rc1+ {[%emt 0:00:41]} 46. Kh2 {[%emt 0:00:01]} Qxe5+ {[%emt 0:00:22]} 47. Qxe5 {[%emt 0:00:11]} Nxe5 {[%emt 0:00:09]} 48. Rxb5 {[%emt 0:00:03]} Nc4 {[%emt 0:01:20]} 49. Rxd5 {[%emt 0:00:37]} 1-0